Cogmind - Beta 17 @@@ ROGUE MODE // 2026.07.14 @ 12:05:03 Player: IsAway Result: Destroyed by ST-QIN(R) with Subdweller Machine Gun Performance ------------- Evolutions (0) 0 Regions Visited (2) 400 Robots Destroyed (29) 145 Value Destroyed (567) 567 Prototype IDs (3) 60 Alien Tech Used (0) 0 Bonus (5000) 5000 TOTAL SCORE: 6172 Bonus ------- Prayed to X0-1V1 5000 Cogmind --------- Core Integrity 0/250 Matter 152/300 Energy 320/925 System Corruption 1% Temperature Hot (259) Movement Core (300) Ox5 Location -10/Subcaves Parts ------- > --- POWER (1) -------- Light Ion Engine > --- PROPULSION (2) --- (None) > --- UTILITY (2) ------ Small Storage Unit X0-1V1's Piety Tracker > --- WEAPON (2) ------- Small Laser Subdweller Shrapnel Launcher > --- INVENTORY (8) ---- Medium Storage Unit Large Storage Unit High-capacity Matter Pod (200) Structural Scanner Structural Scanner ECM Suite Light Assault Rifle Hammer Peak State ------------ > --- POWER ------------ Light Ion Engine > --- PROPULSION ------- Flight Unit Flight Unit > --- UTILITY ---------- Small Storage Unit X0-1V1's Piety Tracker > --- WEAPON ----------- Light Assault Rifle Subdweller Shrapnel Launcher > --- INVENTORY -------- Medium Storage Unit Large Storage Unit High-capacity Matter Pod Structural Scanner Structural Scanner ECM Suite Small Laser Hammer [Rating: 20] Favorites ----------- Power Ion Engine Engine Ion Engine Propulsion Flight Unit Leg Aluminum Leg Wheel Wheel Hover Unit Backup Propulsion I Flight Unit Flight Unit Utility Small Storage Unit Device Structural Scanner Storage Small Storage Unit Processor Targeting Computer Weapon Beam Cannon Energy Gun Small Laser Energy Cannon Beam Cannon Ballistic Gun Assault Rifle Launcher Subdweller Shrapnel Launcher Special Weapon Mining Laser Impact Weapon Hammer Build | -11 -10 -10 ------- Run | Yrd Mat Sub Slots Evolved . | . . . Power . | . . . Propulsion . | . . . Utility . | . . . Weapon . | . . . Parts Attached 31 | 9 21 1 Power 4 | 2 2 . Engine 4 | 2 2 . Core . | . . . Reactor . | . . . Propulsion 9 | 2 7 . Treads . | . . . Leg 1 | . 1 . Wheel 4 | 2 2 . Hover 1 | . 1 . Flight 3 | . 3 . Utility 7 | 3 4 . Device 5 | 2 3 . Storage 1 | 1 . . Processor 1 | . 1 . Hackware . | . . . Protection . | . . . Artifact . | . . . Weapon 11 | 2 8 1 Energy Gun 5 | 2 3 . Energy Cannon 1 | . 1 . Ballistic Gun 2 | . 2 . Ballistic Cannon . | . . . Launcher 1 | . . 1 Special Weapon 1 | . 1 . Impact Weapon 1 | . 1 . Slashing Weapon . | . . . Piercing Weapon . | . . . Special Melee Weapon . | . . . Unidentified Prototypes 1 | . 1 . Parts Lost 9 | . 7 2 Power . | . . . Propulsion 5 | . 3 2 Utility . | . . . Weapon 4 | . 4 . Highest Loss Streak 3 | . 3 2 To Critical Strikes . | . . . Average Backups 6 | 2 7 7 Power 1 | . 1 . Propulsion . | . . . Utility 3 | . 3 6 Weapon 1 | . 1 1 Tool/Special . | . . . Unused Backups 8 | . 3 5 Power . | . . . Propulsion 1 | . 1 . Utility 7 | . 2 5 Weapon . | . . . Tool/Special . | . . . Average Slot Usage (%) 88 | . 88 94 Engine 9 | . 9 8 Wheel 5 | . 5 . Hover 9 | . 10 . Flight 10 | . 9 28 Device 10 | . 10 14 Storage 14 | . 14 14 Processor 2 | . 3 . Energy Gun 10 | . 10 14 Energy Cannon 5 | . 6 . Ballistic Gun 3 | . 2 11 Special Weapon 1 | . 1 . Impact Weapon 3 | . 3 . Peak Build Rating 20 | 9 18 20 Average Rating 7 | 5 6 18 On Entrance 9 | . 9 18 Avg Prop Armor Cover (%) 5 | . 5 . Naked Turns . | . . . Heaviest Build 17 | 15 17 11 Greatest Support 20 | 20 20 8 Greatest Overweight (x) 2 | . 2 1 Average Overweight (x) . | . . . Largest Inventory Capacity 8 | 8 8 8 Average Capacity 7 | 7 8 8 Most Carried 8 | 5 8 8 Average Carried 6 | 2 7 7 Final Capacity 8 | 8 8 8 Final Carried 8 | 5 8 8 Class Distribution -------------------- 85% | Mutant 14% | Scavenger-Mutant Dominant Class ---------------- Mutant | -10/Materials Scavenger-Mutant | -10/Subcaves Resources | -11 -10 -10 ----------- Run | Yrd Mat Sub Matter Collected 783 | 290 493 . Remotely . | . . . Salvage Created 735 | 120 615 . Parts 46 | 7 39 . Haulers Intercepted 1 | . 1 . Recyclers Shooed 1 | 1 . . Parts Field Recycled . | . . . Retrieved Matter . | . . . Parts Self-Destructed . | . . . Prevented . | . . . Parts Restored . | . . . Kills | -11 -10 -10 ------- Run | Yrd Mat Sub Combat Hostiles Destroyed 16 | . 15 1 Guns 9 | . 9 . Cannons 5 | . 5 . AOE 2 | . 1 1 Classes Destroyed 10 | 2 7 1 Worker 2 | . 2 . Builder 1 | . 1 . Tunneler 2 | 2 . . Hauler 1 | . 1 . Recycler 2 | 1 1 . Operator 2 | . 2 . Watcher 3 | . 3 . Swarmer 6 | . 6 . Grunt 9 | . 9 . Subdweller 1 | . . 1 Best Kill Streak 8 | 3 8 1 Combat Bots Only 3 | . 3 1 Max Kills in Single Turn 4 | 1 4 1 Gunslinging . | . . . Exploded 1 | . 1 1 Melee . | . . . Uniques/NPCs Destroyed . | . . . Combat | -11 -10 -10 -------- Run | Yrd Mat Sub Hostile Shots Fired 102 | . 95 7 Missed 29 | . 28 1 Hits 73 | . 67 6 Projectile 73 | . 67 6 Critical Strikes 1 | . . 1 Damage Taken 1108 | 34 823 251 Core 265 | . 171 94 Absorbed by Shields . | . . . Core Remaining (%) 100 | 100 . . Volleys Fired 69 | 7 57 5 Largest 2 | 2 2 2 Hottest 160 | 80 160 80 Shots Fired 128 | 14 104 10 Gun 78 | 14 59 5 Cannon 42 | . 42 . Launcher 5 | . . 5 Special 3 | . 3 . Kinetic 35 | . 30 5 Thermal 71 | . 66 5 Explosive . | . . . Electromagnetic 22 | 14 8 . Robot Hit Streak 9 | 5 7 9 Robot Miss Streak 7 | 1 7 1 Penetration Max . | . . . Secondary Targets . | . . . Shots Hit Robots 65 | 10 47 8 Core Hits 34 | 4 29 1 Critical Kills . | . . . Critical Parts Destroyed . | . . . Critical Strikes 1 | . 1 . Corrupt 1 | . 1 . Melee Attacks 7 | . 7 . Impact 7 | . 7 . Slashing . | . . . Piercing . | . . . Sneak Attacks . | . . . Combat Hostiles . | . . . Follow-up Attacks . | . . . Damage Inflicted 1796 | 158 1338 300 Guns 563 | 132 386 45 Cannons 348 | . 348 . Explosions 841 | 26 560 255 Melee 44 | . 44 . Ramming . | . . . Kinetic 442 | . 187 255 Thermal 625 | 26 554 45 Explosive 488 | . 488 . Electromagnetic 197 | 132 65 . Impact 44 | . 44 . Slashing . | . . . Piercing . | . . . Highest Corruption 1 | . 1 1 Average Corruption 1 | . 1 1 Corruption Purged . | . . . Corruption Blocked . | . . . Effects 2 | . 1 1 Matter Fused 1 | . . 1 Misfires 1 | . 1 . Overload Shots . | . . . Overflow Damage 90 | . 90 . Projectiles 21 | . 21 . Explosions 35 | . 35 . Melee 34 | . 34 . Knockbacks 1 | . 1 . Impact 1 | . 1 . Kinetic . | . . . Secondary . | . . . Self-Inflicted Damage 269 | 34 139 96 Shots 7 | 1 2 4 Rammed . | . . . Targets Rammed . | . . . Kicked . | . . . Crushed . | . . . Highest Temperature 568 | 66 568 259 Average Temperature 131 | 31 137 232 Received Heat Transfer 530 | . 225 305 Effects 10 | . 10 . Shutdowns 2 | . 2 . Matter Decay 1 | . 1 . Damage (major) 7 | . 7 . Siege Activations . | . . . Martial Activations . | . . . Shielding Activations . | . . . Robots Disrupted . | . . . Combat Hostiles . | . . . Robots Corrupted 1 | . 1 . Combat Hostiles . | . . . Parts Fried 2 | 1 1 . Impact Corruptions 2 | . 2 . Robots Melted . | . . . Combat Hostiles . | . . . Parts Melted 1 | . 1 . Heat Transferred 1312 | 50 1162 100 Parts Sabotaged . | . . . Parts Stolen . | . . . Parts Stripped . | . . . Power Chain Reactions 2 | 1 1 . Alert | -11 -10 -10 ------- Run | Yrd Mat Sub Maximum Alert Level . | . . . Low Security (%) 100 | 100 100 . Level 1 . | . . . Level 2 . | . . . Level 3 . | . . . Level 4 . | . . . Level 5 . | . . . High Security . | . . . Max Security . | . . . Peak Influence 145 | 10 145 . Initial . | . . . Average 33 | 2 36 . Influence Increases 520 | 15 505 . Destroy 0b10 Robot/C 300 | . 300 . Destroy 0b10 Robot/NC 65 | 15 50 . Destroy Leader 58 | . 58 . Successful Hack 5 | . 5 . Disable Machine 30 | . 30 . Destroy Structure 47 | . 47 . Partial Spotted 15 | . 15 . Influence Decreases 520 | 15 475 30 Entered New Map 15 | . . 15 Time Decay 296 | 15 271 10 Lost Part 74 | . 69 5 Purge Threat 135 | . 135 . Squads Dispatched 3 | . 3 . Investigation 1 | . 1 . Extermination . | . . . Reinforcement 2 | . 2 . Assault . | . . . Garrison . | . . . Intercept . | . . . Searches Triggered . | . . . Construction Impeded . | . . . Haulers Reinforced . | . . . Active Scanning Responses . | . . . Cargo Convoy Interrupts . | . . . Stealth | -11 -10 -10 --------- Run | Yrd Mat Sub Distress Signals 1 | . 1 . Communications Jammed . | . . . Distress Signals . | . . . Times Spotted 23 | . 21 2 Peak Tracking Total 4 | . 4 2 Tactical Retreats . | . . . Traps | -11 -10 -10 ------- Run | Yrd Mat Sub Traps Triggered 1 | . 1 . Indirectly . | . . . Trap Hack Attempts . | . . . Triggered . | . . . Disarmed . | . . . Reprogrammed . | . . . Reused . | . . . Traps Extracted . | . . . Installed . | . . . Triggered . | . . . Machines | -11 -10 -10 ---------- Run | Yrd Mat Sub Machines Disabled 2 | . 2 . Max in Single Turn 1 | . 1 . Machines Repaired . | . . . Machines Dismantled . | . . . Machines Sabotaged . | . . . Overloaded Fab Kills . | . . . Hacking | -11 -10 -10 --------- Run | Yrd Mat Sub Machines Accessed 9 | . 9 . Terminals 6 | . 6 . Fabricators . | . . . Repair Stations 1 | . 1 . Recycling Units 2 | . 2 . Scanalyzers . | . . . Garrison Access . | . . . Total Hacks 20 | . 20 . Successful 11 | . 11 . Failed 9 | . 9 . Catastrophic 2 | . 2 . Database Lockouts . | . . . Manual 5 | . 5 . Terminals 13 | . 13 . Fabricators . | . . . Repair Stations 3 | . 3 . Recycling Units 4 | . 4 . Scanalyzers . | . . . Garrison Access . | . . . Terminal Hacks 6 | . 6 . Prototype ID Bank 1 | . 1 . Alert Level 1 | . 1 . Unreport Threat 1 | . 1 . Recall Reinforcements 1 | . 1 . Zone Layout 2 | . 2 . Fabricator Hacks . | . . . Repair Station Hacks 1 | . 1 . Refit 1 | . 1 . Recycling Unit Hacks 4 | . 4 . Process 1 | . 1 . Report Inventory 2 | . 2 . Retrieve Matter 1 | . 1 . Scanalyzer . | . . . Garrison Access Hacks . | . . . Unauthorized Hacks . | . . . Terminals . | . . . Fabricators . | . . . Repair Stations . | . . . Recycling Units . | . . . Scanalyzers . | . . . Garrison Access . | . . . Data Cores Recovered . | . . . Used . | . . . Hacking Detections 7 | . 7 . Full Trace Events 1 | . 1 . Feedback Events 1 | . 1 . Corruption 1 | . 1 . Feedback Blocked . | . . . Robot Schematics Acquired . | . . . Robots Built . | . . . Authchips . | . . . Time . | . . . Total Robot Build Rating . | . . . Part Schematics Acquired . | . . . Parts Built . | . . . Authchips . | . . . Time . | . . . Total Part Build Rating . | . . . Part Studies Acquired . | . . . Parts Repaired . | . . . Time . | . . . Parts Recycled . | . . . Recycled Matter 99 | . 99 . Retrieved Matter 99 | . 99 . Retrieved Components . | . . . Parts Scanalyzed . | . . . Part Schematics Acquired . | . . . Parts Damaged . | . . . Bothacking | -11 -10 -10 ------------ Run | Yrd Mat Sub Used RIF Installer . | . . . Robots Hacked . | . . . Non-combat . | . . . Combat . | . . . Robot Hacks Applied . | . . . Relay Couplers Released . | . . . Fabnet Peak Effective % . | . . . Robots Rewired . | . . . Allies Hacked . | . . . Hacks Repelled . | . . . Allies | -11 -10 -10 -------- Run | Yrd Mat Sub Total Allies . | . . . Largest Group . | . . . Highest-Rated Group . | . . . Highest-Rated Ally . | . . . Total Orders . | . . . Ally Attacks . | . . . Total Damage . | . . . Kills . | . . . Allies Corrupted . | . . . Allies Melted . | . . . X0-1V1 Amusement Gains 5 | . 5 . Good Acts 2 | . 1 1 Bad Acts 1 | . . 1 Intel | -11 -10 -10 ------- Run | Yrd Mat Sub Active Infowar (turns) 583 | 12 571 . Terrain 14 | 6 8 . Structural 563 | . 563 . Seismic 6 | 6 . . Robot Analysis Total . | . . . Derelict Logs Recovered . | . . . Drone Launches . | . . . Drone Recoveries . | . . . Exploration | -11 -10 -10 ------------- Run | Yrd Mat Sub Turns Passed 888 | 78 767 43 Spaces Moved 867 | 51 788 28 Core 2 | 2 . . Treads . | . . . Legs 17 | . 17 . Wheels 234 | 49 185 . Hover 83 | . 83 . Flight 531 | . 503 28 Fastest Speed 37 | 50 37 37 Average Speed 63 | 78 61 91 Slowest Speed 240 | 80 240 117 Overloaded Moves . | . . . Propulsion Burnouts . | . . . Robots Hopped . | . . . Potential Cave-ins . | . . . Cave-ins Triggered . | . . . Exploration Rate (%) 32 | 5 89 4 Regions Visited 2 Branch Regions 1 Pre-discovered Areas . | . . . Known Exits Taken . | . . . Unknown Exits Taken 2 | 1 1 . Scrap Searched . | . . . Spaces Dug 3 | . 3 . Terrain Destroyed 92 | 1 47 44 Melee . | . . . Projectile 3 | . 3 . AOE 89 | 1 44 44 Terrain Rammed . | . . . Walls Destroyed . | . . . Machines Disabled . | . . . Actions | -11 -10 -10 --------- Run | Yrd Mat Sub Total 1061 | 70 954 37 Wait 29 | . 29 . Move 865 | 50 787 28 Hop . | . . . Pick Up 20 | 3 16 1 Fast Attach 19 | 8 11 . Attach 10 | . 9 1 Detach 7 | 1 6 . Swap 13 | 1 10 2 Drop 22 | . 22 . Fire 69 | 7 57 5 Melee 7 | . 7 . Ram . | . . . Kick . | . . . Crush . | . . . Escape Stasis . | . . . Rewire . | . . . Trap . | . . . Miscellaneous . | . . . Route ------- -11/Scrapyard -10/Materials (discovered 5 exits: [*Mat x3] / [Min] / [*Sub]) -10/Subcaves History --------- Turn | Location | Event 9 | -11/Scrapyard | Discovered new exit (range 15) 79 | -11/Scrapyard | Entered Materials 170 | -10/Materials | Discovered new exit (range 9) 250 | -10/Materials | Lost 3 parts (1n2w) 263 | -10/Materials | Discovered new exit (range 15) 311 | -10/Materials | Build established: Mutant 528 | -10/Materials | Core integrity fell below 50% 586 | -10/Materials | Discovered new exit (range 8) 752 | -10/Materials | Discovered new exit (range 13) 801 | -10/Materials | Discovered new exit (range 9) 838 | -10/Materials | Prayed at D.C.S.S. Altar Unit 840 | -10/Materials | X0-1V1 activates XOMVISION 846 | -10/Materials | Entered Subcaves 849 | -10/Subcaves | Shifting Twisted Machinery released Sub. Shrapnel Launcher 861 | -10/Subcaves | Shifting Twisted Machinery released Sub. Power Source 886 | -10/Subcaves | Core integrity fell below 20% 889 | -10/Subcaves | Destroyed by ST-QIN(R) with Subdweller Machine Gun Last Messages --------------- U-05 Engineer lays Concrete. LOCATION=UNKNOWN AMBIENT_HEAT=-10 GOAL=ESCAPE Sub. Shrapnel Launcher falls loose from the Twisted Machinery. System corrupted: Matter fused (-8). X0-1V1: "Let the electrons flow!" (+800 energy capacity) Acquired Sub. Shrapnel Launcher. Sub. Power Source falls loose from the Twisted Machinery. Critical hit (Meltdown: +260). Flight Unit destroyed. X0-1V1: "Your inner air conditioner seems to have fallen into disrepair." (-25 heat dissipation) Destroyed Scrap Shield. ST-QIN(R): "ARGHSUB!" AA-5AD(R) destroyed. X0-1V1 laughs nastily! Map ----- +----------------------------------------------------+ | ?????????????????????????????????????????????????? | | ?????????????????????????????????????????????????? | | ?????????????????????????????????????????????????? | | ?????????????????????????????????????????????????? | | ?????????????????????????????????????????????????? | | ?????????????????????????????????????????????????? | | ?????????????????????????????????????????????????? | | ?????????????????????????????????????????????????? | | ?????????????????????????????????????????????????? | | ?????????????????????????????????????????????????? | | ?????????????????????????????????????????????????? | | ?????????????????????????????????????????????????? | | ??????????????????????????????????????????####???? | | ??????????????????????????????###??###???## #???? | | ?????????????????????#????????# ### ##### #???? | | ????????????????????##"???????# ##???? | | ???????????????######""#??????# #????? | | ??????????? ### ""###?### # ##????? | | ??????????? " ### "" ### #?????? | | ????????????? # """""" ##? ##?????? | | ????????????????# "" #?## #??????? | | ??????????????????# "" ##?###??????? | | ?????????????????## ##?????????? | | ????????????????## ;; ;;;; ;; #????????? | | ????????????????# ;; #????????? | | ????????????????### @ ;;#????????? | | ??????????????????## ;;R ;#????????? | | ???????????????????### & #;;;;; ????????? | | ?????????????????????## #??????????????? | | ??????????????????????# #??????????????? | | ??????????????????????# #??????????????? | | ??????????????????????# #??????????????? | | ?????????????????????? ; #?????????????? | | ????????????????????? #### #????????????? | | ???????????????????? ##??? " #???????????? | | ????????????????????### #????? """ ????????????? | | ??????????????????????## ?????? "??????????????? | | ???????????????????????##???????# "??????????????? | | ?????????????????????????????????????????????????? | | ?????????????????????????????????????????????????? | | ?????????????????????????????????????????????????? | | ?????????????????????????????????????????????????? | | ?????????????????????????????????????????????????? | | ?????????????????????????????????????????????????? | | ?????????????????????????????????????????????????? | | ?????????????????????????????????????????????????? | | ?????????????????????????????????????????????????? | | ?????????????????????????????????????????????????? | | ?????????????????????????????????????????????????? | | ?????????????????????????????????????????????????? | +----------------------------------------------------+ Best States ------------- Heat Dissipation 25 Energy Generation 10 Energy Capacity 925 Matter Stores 300 Matter Capacity 300 Sight Range 16 Terrain Scan Range 16 Terrain Scan Density 10 Evasion (%) 62 Targeting Accuracy 5 Item Schematics ----------------- None Robot Schematics ------------------ None Fabricated ------------ Nothing Repaired ---------- Nothing Studied --------- None Alien Tech Used ----------------- None Achievements -------------- Chaos Is Inevitable Challenges ------------ None Game ------ Seed DefenseChipRefractor Manual? 0 Play Time 00:23:12 Cumulative 36.1 hours Start 2026.07.14 @ 11:42:54 End 2026.07.14 @ 12:05:03 Sessions 1 Manual Loads 0 Difficulty Rogue Special Mode None Game No. 49 Rogue 49 Adventurer 0 Explorer 0 Win Type - Total 0 Types 0/0/0/0/0/0/0/0/0/0 Lore% 38 Gallery% 27 Achievement% 25 Wizard Run 0 Options --------- Layout 1 ASCII 0 Keyboard 0 Movement Mouse Keybinds 0 Fullscreen 2 Font 18/SmallcapsGlow Map View 51x41 Zoom Use 0% Tactical HUD 0 Map Filters NONE Filters NONE Steam 1 RUN: b3d6a566-c0cd-4035-a692-2809d1aaa32b